{"text_format":"1","workbook":"xlsx","n_sheets":4,"sheets":["VISITAS","BUSCAR","DATOS","HISTORIA"],"not_rendered":{"charts":2,"images":0,"macros":1,"external_links":0,"defined_names":8,"comments":0,"pivot_tables":0},"unopened":[],"bounds":{"document_bytes":16777216,"sheet_cells":100000,"rows_first":2000,"rows_last":500,"rows_between":2000,"halvings":0,"cell_chars":16384,"cell_head_chars":4096},"cells_cut":0,"cells_raw":0,"read":"whole","date_system":"1900"}

{"sheet":"VISITAS","index":0,"n_rows":14,"n_cols":9,"rows_kept":14,"cut":false,"hidden":false,"merged":[[1,3,1,6],[13,3,13,6],[3,1,10,1],[3,8,10,8],[5,3,8,3],[2,3,3,3],[2,4,3,4]]}
[]
[null,null,null,"Celebrando el millón de visitas al blog: Pedro Wave for Excel Guys"]
[null,null,null,null,null,"AUTOR: ","Pedro Wave for Excel Guys"]
[null,"Un millón de visitas",null,null,null,"BLOG: ","https://pedrowave.blogspot.com",null,"Un millón de visitas"]
[null,null,null,"Número de Visita","Fecha de Visita","Fórmula de Búsqueda","Tipo de Búsqueda"]
[null,null,null,1,{"$f":"VLOOKUP(Rango_Valor,Rango_DATOS,2,FALSE)","v":"2010-03-10T20:00:00"},"=BUSCARV(Rango_Valor;Rango_DATOS;2;FALSO)","Con una función BUSCARV con coincidencia exacta"]
[null,null,null,null,{"$f":"IF(VLOOKUP(Rango_Valor,Rango_DATOS_A,1,TRUE)=Rango_Valor,\nVLOOKUP(Rango_Valor,Rango_DATOS,2,TRUE),NA())","v":"2010-03-10T20:00:00"},"=SI(BUSCARV(Rango_Valor;Rango_DATOS_A;1;VERDADERO)=Rango_Valor;\nBUSCARV(Rango_Valor;Rango_DATOS;2;VERDADERO);NOD())","Con dos funciones BUSCARV con coincidencia aproximada"]
[null,null,null,null,{"$f":"_xlfn.XLOOKUP(Rango_Valor,Rango_DATOS_A,Rango_DATOS_B)","v":"2010-03-10T20:00:00"},"=BUSCARX(Rango_Valor;Rango_DATOS_A;Rango_DATOS_B)","Con una función BUSCARX con coincidencia exacta (Excel 365)"]
[null,null,null,null,{"$f":"_xlfn.XLOOKUP(Rango_Valor,Rango_DATOS_A,Rango_DATOS_B,,,2)","v":"2010-03-10T20:00:00"},"=BUSCARX(Rango_Valor;Rango_DATOS_A;Rango_DATOS_B;;;2)","Con BUSCARX con búsqueda binaria ascendente  (Excel 365)"]
[]
[null,null,null,null,null,"Elige una fórmula de búsqueda","Tiempo de Búsqueda [hh]:mm:ss,000"]
[null,null,null,null,null,"Con una función BUSCARV con coincidencia exacta",0]
[]
[null,null,null,"Celebrando el millón de visitas al blog: Pedro Wave for Excel Guys"]

{"sheet":"BUSCAR","index":1,"n_rows":11,"n_cols":2,"rows_kept":11,"cut":false,"hidden":false,"merged":[]}
["Visitas","Fechas"]
[{"$f":"Rango_Valor","v":1},{"$f":"CHOOSE(Rango_NumFormula,\nVLOOKUP(TablaBuscar[[#This Row],[Visitas]],Rango_DATOS,2,FALSE),\nIF(VLOOKUP(TablaBuscar[[#This Row],[Visitas]],Rango_DATOS_A,1,TRUE)=TablaBuscar[[#This Row],[Visitas]],VLOOKUP(TablaBuscar[[#This Row],[Visitas]],Rango_DATOS,2,TRUE),NA()),\n_xlfn.XLOOKUP(TablaBuscar[[#This Row],[Visitas]],Rango_DATOS_A,Rango_DATOS_B),\n_xlfn.XLOOKUP(TablaBuscar[[#This Row],[Visitas]],Rango_DATOS_A,Rango_DATOS_B,,,2))","v":"2010-03-10T20:00:00"}]
[{"$f":"A2+1","v":2},{"$f":"CHOOSE(Rango_NumFormula,\nVLOOKUP(TablaBuscar[[#This Row],[Visitas]],Rango_DATOS,2,FALSE),\nIF(VLOOKUP(TablaBuscar[[#This Row],[Visitas]],Rango_DATOS_A,1,TRUE)=TablaBuscar[[#This Row],[Visitas]],VLOOKUP(TablaBuscar[[#This Row],[Visitas]],Rango_DATOS,2,TRUE),NA()),\n_xlfn.XLOOKUP(TablaBuscar[[#This Row],[Visitas]],Rango_DATOS_A,Rango_DATOS_B),\n_xlfn.XLOOKUP(TablaBuscar[[#This Row],[Visitas]],Rango_DATOS_A,Rango_DATOS_B,,,2))","v":"2010-03-11T16:56:00"}]
[{"$f":"A3+1","v":3},{"$f":"CHOOSE(Rango_NumFormula,\nVLOOKUP(TablaBuscar[[#This Row],[Visitas]],Rango_DATOS,2,FALSE),\nIF(VLOOKUP(TablaBuscar[[#This Row],[Visitas]],Rango_DATOS_A,1,TRUE)=TablaBuscar[[#This Row],[Visitas]],VLOOKUP(TablaBuscar[[#This Row],[Visitas]],Rango_DATOS,2,TRUE),NA()),\n_xlfn.XLOOKUP(TablaBuscar[[#This Row],[Visitas]],Rango_DATOS_A,Rango_DATOS_B),\n_xlfn.XLOOKUP(TablaBuscar[[#This Row],[Visitas]],Rango_DATOS_A,Rango_DATOS_B,,,2))","v":"2010-03-11T23:52:58"}]
[4,{"$f":"CHOOSE(Rango_NumFormula,\nVLOOKUP(TablaBuscar[[#This Row],[Visitas]],Rango_DATOS,2,FALSE),\nIF(VLOOKUP(TablaBuscar[[#This Row],[Visitas]],Rango_DATOS_A,1,TRUE)=TablaBuscar[[#This Row],[Visitas]],VLOOKUP(TablaBuscar[[#This Row],[Visitas]],Rango_DATOS,2,TRUE),NA()),\n_xlfn.XLOOKUP(TablaBuscar[[#This Row],[Visitas]],Rango_DATOS_A,Rango_DATOS_B),\n_xlfn.XLOOKUP(TablaBuscar[[#This Row],[Visitas]],Rango_DATOS_A,Rango_DATOS_B,,,2))","v":"2010-03-11T23:52:58"}]
[5,{"$f":"CHOOSE(Rango_NumFormula,\nVLOOKUP(TablaBuscar[[#This Row],[Visitas]],Rango_DATOS,2,FALSE),\nIF(VLOOKUP(TablaBuscar[[#This Row],[Visitas]],Rango_DATOS_A,1,TRUE)=TablaBuscar[[#This Row],[Visitas]],VLOOKUP(TablaBuscar[[#This Row],[Visitas]],Rango_DATOS,2,TRUE),NA()),\n_xlfn.XLOOKUP(TablaBuscar[[#This Row],[Visitas]],Rango_DATOS_A,Rango_DATOS_B),\n_xlfn.XLOOKUP(TablaBuscar[[#This Row],[Visitas]],Rango_DATOS_A,Rango_DATOS_B,,,2))","v":"2010-03-11T23:52:58"}]
[6,{"$f":"CHOOSE(Rango_NumFormula,\nVLOOKUP(TablaBuscar[[#This Row],[Visitas]],Rango_DATOS,2,FALSE),\nIF(VLOOKUP(TablaBuscar[[#This Row],[Visitas]],Rango_DATOS_A,1,TRUE)=TablaBuscar[[#This Row],[Visitas]],VLOOKUP(TablaBuscar[[#This Row],[Visitas]],Rango_DATOS,2,TRUE),NA()),\n_xlfn.XLOOKUP(TablaBuscar[[#This Row],[Visitas]],Rango_DATOS_A,Rango_DATOS_B),\n_xlfn.XLOOKUP(TablaBuscar[[#This Row],[Visitas]],Rango_DATOS_A,Rango_DATOS_B,,,2))","v":"2010-03-12T11:14:56"}]
[7,{"$f":"CHOOSE(Rango_NumFormula,\nVLOOKUP(TablaBuscar[[#This Row],[Visitas]],Rango_DATOS,2,FALSE),\nIF(VLOOKUP(TablaBuscar[[#This Row],[Visitas]],Rango_DATOS_A,1,TRUE)=TablaBuscar[[#This Row],[Visitas]],VLOOKUP(TablaBuscar[[#This Row],[Visitas]],Rango_DATOS,2,TRUE),NA()),\n_xlfn.XLOOKUP(TablaBuscar[[#This Row],[Visitas]],Rango_DATOS_A,Rango_DATOS_B),\n_xlfn.XLOOKUP(TablaBuscar[[#This Row],[Visitas]],Rango_DATOS_A,Rango_DATOS_B,,,2))","v":"2010-03-12T18:24:18"}]
[8,{"$f":"CHOOSE(Rango_NumFormula,\nVLOOKUP(TablaBuscar[[#This Row],[Visitas]],Rango_DATOS,2,FALSE),\nIF(VLOOKUP(TablaBuscar[[#This Row],[Visitas]],Rango_DATOS_A,1,TRUE)=TablaBuscar[[#This Row],[Visitas]],VLOOKUP(TablaBuscar[[#This Row],[Visitas]],Rango_DATOS,2,TRUE),NA()),\n_xlfn.XLOOKUP(TablaBuscar[[#This Row],[Visitas]],Rango_DATOS_A,Rango_DATOS_B),\n_xlfn.XLOOKUP(TablaBuscar[[#This Row],[Visitas]],Rango_DATOS_A,Rango_DATOS_B,,,2))","v":"2010-03-12T18:24:18"}]
[9,{"$f":"CHOOSE(Rango_NumFormula,\nVLOOKUP(TablaBuscar[[#This Row],[Visitas]],Rango_DATOS,2,FALSE),\nIF(VLOOKUP(TablaBuscar[[#This Row],[Visitas]],Rango_DATOS_A,1,TRUE)=TablaBuscar[[#This Row],[Visitas]],VLOOKUP(TablaBuscar[[#This Row],[Visitas]],Rango_DATOS,2,TRUE),NA()),\n_xlfn.XLOOKUP(TablaBuscar[[#This Row],[Visitas]],Rango_DATOS_A,Rango_DATOS_B),\n_xlfn.XLOOKUP(TablaBuscar[[#This Row],[Visitas]],Rango_DATOS_A,Rango_DATOS_B,,,2))","v":"2010-03-12T20:57:28"}]
[10,{"$f":"CHOOSE(Rango_NumFormula,\nVLOOKUP(TablaBuscar[[#This Row],[Visitas]],Rango_DATOS,2,FALSE),\nIF(VLOOKUP(TablaBuscar[[#This Row],[Visitas]],Rango_DATOS_A,1,TRUE)=TablaBuscar[[#This Row],[Visitas]],VLOOKUP(TablaBuscar[[#This Row],[Visitas]],Rango_DATOS,2,TRUE),NA()),\n_xlfn.XLOOKUP(TablaBuscar[[#This Row],[Visitas]],Rango_DATOS_A,Rango_DATOS_B),\n_xlfn.XLOOKUP(TablaBuscar[[#This Row],[Visitas]],Rango_DATOS_A,Rango_DATOS_B,,,2))","v":"2010-03-13T23:59:09"}]

{"sheet":"DATOS","index":2,"n_rows":11,"n_cols":2,"rows_kept":11,"cut":false,"hidden":false,"merged":[]}
["Visita","Fecha"]
[1,"2010-03-10T20:00:00"]
[2,"2010-03-11T16:56:00"]
[3,"2010-03-11T23:52:58"]
[4,"2010-03-11T23:52:58"]
[5,"2010-03-11T23:52:58"]
[6,"2010-03-12T11:14:56"]
[7,"2010-03-12T18:24:18"]
[8,"2010-03-12T18:24:18"]
[9,"2010-03-12T20:57:28"]
[10,"2010-03-13T23:59:09"]

{"sheet":"HISTORIA","index":3,"n_rows":135,"n_cols":3,"rows_kept":135,"cut":false,"hidden":false,"merged":[]}
["Año-Mes","Visitas","Acumulado"]
["2010-03-01",57,{"$f":"TablaAñoMesVisitas[[#This Row],[Visitas]]","v":57}]
["2010-04-01",102,{"$f":"C2+TablaAñoMesVisitas[[#This Row],[Visitas]]","v":159}]
["2010-05-01",223,{"$f":"C3+TablaAñoMesVisitas[[#This Row],[Visitas]]","v":382}]
["2010-06-01",345,{"$f":"C4+TablaAñoMesVisitas[[#This Row],[Visitas]]","v":727}]
["2010-07-01",761,{"$f":"C5+TablaAñoMesVisitas[[#This Row],[Visitas]]","v":1488}]
["2010-08-01",1089,{"$f":"C6+TablaAñoMesVisitas[[#This Row],[Visitas]]","v":2577}]
["2010-09-01",2089,{"$f":"C7+TablaAñoMesVisitas[[#This Row],[Visitas]]","v":4666}]
["2010-10-01",1847,{"$f":"C8+TablaAñoMesVisitas[[#This Row],[Visitas]]","v":6513}]
["2010-11-01",2143,{"$f":"C9+TablaAñoMesVisitas[[#This Row],[Visitas]]","v":8656}]
["2010-12-01",3300,{"$f":"C10+TablaAñoMesVisitas[[#This Row],[Visitas]]","v":11956}]
["2011-01-01",3473,{"$f":"C11+TablaAñoMesVisitas[[#This Row],[Visitas]]","v":15429}]
["2011-02-01",3569,{"$f":"C12+TablaAñoMesVisitas[[#This Row],[Visitas]]","v":18998}]
["2011-03-01",4202,{"$f":"C13+TablaAñoMesVisitas[[#This Row],[Visitas]]","v":23200}]
["2011-04-01",3562,{"$f":"C14+TablaAñoMesVisitas[[#This Row],[Visitas]]","v":26762}]
["2011-05-01",4021,{"$f":"C15+TablaAñoMesVisitas[[#This Row],[Visitas]]","v":30783}]
["2011-06-01",3677,{"$f":"C16+TablaAñoMesVisitas[[#This Row],[Visitas]]","v":34460}]
["2011-07-01",2713,{"$f":"C17+TablaAñoMesVisitas[[#This Row],[Visitas]]","v":37173}]
["2011-08-01",3071,{"$f":"C18+TablaAñoMesVisitas[[#This Row],[Visitas]]","v":40244}]
["2011-09-01",3901,{"$f":"C19+TablaAñoMesVisitas[[#This Row],[Visitas]]","v":44145}]
["2011-10-01",5465,{"$f":"C20+TablaAñoMesVisitas[[#This Row],[Visitas]]","v":49610}]
["2011-11-01",6056,{"$f":"C21+TablaAñoMesVisitas[[#This Row],[Visitas]]","v":55666}]
["2011-12-01",5000,{"$f":"C22+TablaAñoMesVisitas[[#This Row],[Visitas]]","v":60666}]
["2012-01-01",5929,{"$f":"C23+TablaAñoMesVisitas[[#This Row],[Visitas]]","v":66595}]
["2012-02-01",6536,{"$f":"C24+TablaAñoMesVisitas[[#This Row],[Visitas]]","v":73131}]
["2012-03-01",7059,{"$f":"C25+TablaAñoMesVisitas[[#This Row],[Visitas]]","v":80190}]
["2012-04-01",6196,{"$f":"C26+TablaAñoMesVisitas[[#This Row],[Visitas]]","v":86386}]
["2012-05-01",7442,{"$f":"C27+TablaAñoMesVisitas[[#This Row],[Visitas]]","v":93828}]
["2012-06-01",7683,{"$f":"C28+TablaAñoMesVisitas[[#This Row],[Visitas]]","v":101511}]
["2012-07-01",7324,{"$f":"C29+TablaAñoMesVisitas[[#This Row],[Visitas]]","v":108835}]
["2012-08-01",7046,{"$f":"C30+TablaAñoMesVisitas[[#This Row],[Visitas]]","v":115881}]
["2012-09-01",9296,{"$f":"C31+TablaAñoMesVisitas[[#This Row],[Visitas]]","v":125177}]
["2012-10-01",12055,{"$f":"C32+TablaAñoMesVisitas[[#This Row],[Visitas]]","v":137232}]
["2012-11-01",13916,{"$f":"C33+TablaAñoMesVisitas[[#This Row],[Visitas]]","v":151148}]
["2012-12-01",12810,{"$f":"C34+TablaAñoMesVisitas[[#This Row],[Visitas]]","v":163958}]
["2013-01-01",12807,{"$f":"C35+TablaAñoMesVisitas[[#This Row],[Visitas]]","v":176765}]
["2013-02-01",12060,{"$f":"C36+TablaAñoMesVisitas[[#This Row],[Visitas]]","v":188825}]
["2013-03-01",9759,{"$f":"C37+TablaAñoMesVisitas[[#This Row],[Visitas]]","v":198584}]
["2013-04-01",11170,{"$f":"C38+TablaAñoMesVisitas[[#This Row],[Visitas]]","v":209754}]
["2013-05-01",8392,{"$f":"C39+TablaAñoMesVisitas[[#This Row],[Visitas]]","v":218146}]
["2013-06-01",7225,{"$f":"C40+TablaAñoMesVisitas[[#This Row],[Visitas]]","v":225371}]
["2013-07-01",6029,{"$f":"C41+TablaAñoMesVisitas[[#This Row],[Visitas]]","v":231400}]
["2013-08-01",6339,{"$f":"C42+TablaAñoMesVisitas[[#This Row],[Visitas]]","v":237739}]
["2013-09-01",7454,{"$f":"C43+TablaAñoMesVisitas[[#This Row],[Visitas]]","v":245193}]
["2013-10-01",6489,{"$f":"C44+TablaAñoMesVisitas[[#This Row],[Visitas]]","v":251682}]
["2013-11-01",6748,{"$f":"C45+TablaAñoMesVisitas[[#This Row],[Visitas]]","v":258430}]
["2013-12-01",5609,{"$f":"C46+TablaAñoMesVisitas[[#This Row],[Visitas]]","v":264039}]
["2014-01-01",5924,{"$f":"C47+TablaAñoMesVisitas[[#This Row],[Visitas]]","v":269963}]
["2014-02-01",5829,{"$f":"C48+TablaAñoMesVisitas[[#This Row],[Visitas]]","v":275792}]
["2014-03-01",7731,{"$f":"C49+TablaAñoMesVisitas[[#This Row],[Visitas]]","v":283523}]
["2014-04-01",6984,{"$f":"C50+TablaAñoMesVisitas[[#This Row],[Visitas]]","v":290507}]
["2014-05-01",8056,{"$f":"C51+TablaAñoMesVisitas[[#This Row],[Visitas]]","v":298563}]
["2014-06-01",9555,{"$f":"C52+TablaAñoMesVisitas[[#This Row],[Visitas]]","v":308118}]
["2014-07-01",8894,{"$f":"C53+TablaAñoMesVisitas[[#This Row],[Visitas]]","v":317012}]
["2014-08-01",11450,{"$f":"C54+TablaAñoMesVisitas[[#This Row],[Visitas]]","v":328462}]
["2014-09-01",13640,{"$f":"C55+TablaAñoMesVisitas[[#This Row],[Visitas]]","v":342102}]
["2014-10-01",11820,{"$f":"C56+TablaAñoMesVisitas[[#This Row],[Visitas]]","v":353922}]
["2014-11-01",12973,{"$f":"C57+TablaAñoMesVisitas[[#This Row],[Visitas]]","v":366895}]
["2014-12-01",18230,{"$f":"C58+TablaAñoMesVisitas[[#This Row],[Visitas]]","v":385125}]
["2015-01-01",17712,{"$f":"C59+TablaAñoMesVisitas[[#This Row],[Visitas]]","v":402837}]
["2015-02-01",10802,{"$f":"C60+TablaAñoMesVisitas[[#This Row],[Visitas]]","v":413639}]
["2015-03-01",9567,{"$f":"C61+TablaAñoMesVisitas[[#This Row],[Visitas]]","v":423206}]
["2015-04-01",10147,{"$f":"C62+TablaAñoMesVisitas[[#This Row],[Visitas]]","v":433353}]
["2015-05-01",8773,{"$f":"C63+TablaAñoMesVisitas[[#This Row],[Visitas]]","v":442126}]
["2015-06-01",7875,{"$f":"C64+TablaAñoMesVisitas[[#This Row],[Visitas]]","v":450001}]
["2015-07-01",7358,{"$f":"C65+TablaAñoMesVisitas[[#This Row],[Visitas]]","v":457359}]
["2015-08-01",8571,{"$f":"C66+TablaAñoMesVisitas[[#This Row],[Visitas]]","v":465930}]
["2015-09-01",7798,{"$f":"C67+TablaAñoMesVisitas[[#This Row],[Visitas]]","v":473728}]
["2015-10-01",9738,{"$f":"C68+TablaAñoMesVisitas[[#This Row],[Visitas]]","v":483466}]
["2015-11-01",9063,{"$f":"C69+TablaAñoMesVisitas[[#This Row],[Visitas]]","v":492529}]
["2015-12-01",9373,{"$f":"C70+TablaAñoMesVisitas[[#This Row],[Visitas]]","v":501902}]
["2016-01-01",13072,{"$f":"C71+TablaAñoMesVisitas[[#This Row],[Visitas]]","v":514974}]
["2016-02-01",15229,{"$f":"C72+TablaAñoMesVisitas[[#This Row],[Visitas]]","v":530203}]
["2016-03-01",10927,{"$f":"C73+TablaAñoMesVisitas[[#This Row],[Visitas]]","v":541130}]
["2016-04-01",10054,{"$f":"C74+TablaAñoMesVisitas[[#This Row],[Visitas]]","v":551184}]
["2016-05-01",10789,{"$f":"C75+TablaAñoMesVisitas[[#This Row],[Visitas]]","v":561973}]
["2016-06-01",19453,{"$f":"C76+TablaAñoMesVisitas[[#This Row],[Visitas]]","v":581426}]
["2016-07-01",21189,{"$f":"C77+TablaAñoMesVisitas[[#This Row],[Visitas]]","v":602615}]
["2016-08-01",18915,{"$f":"C78+TablaAñoMesVisitas[[#This Row],[Visitas]]","v":621530}]
["2016-09-01",21498,{"$f":"C79+TablaAñoMesVisitas[[#This Row],[Visitas]]","v":643028}]
["2016-10-01",20170,{"$f":"C80+TablaAñoMesVisitas[[#This Row],[Visitas]]","v":663198}]
["2016-11-01",18251,{"$f":"C81+TablaAñoMesVisitas[[#This Row],[Visitas]]","v":681449}]
["2016-12-01",18243,{"$f":"C82+TablaAñoMesVisitas[[#This Row],[Visitas]]","v":699692}]
["2017-01-01",17701,{"$f":"C83+TablaAñoMesVisitas[[#This Row],[Visitas]]","v":717393}]
["2017-02-01",13477,{"$f":"C84+TablaAñoMesVisitas[[#This Row],[Visitas]]","v":730870}]
["2017-03-01",13835,{"$f":"C85+TablaAñoMesVisitas[[#This Row],[Visitas]]","v":744705}]
["2017-04-01",13327,{"$f":"C86+TablaAñoMesVisitas[[#This Row],[Visitas]]","v":758032}]
["2017-05-01",11762,{"$f":"C87+TablaAñoMesVisitas[[#This Row],[Visitas]]","v":769794}]
["2017-06-01",5599,{"$f":"C88+TablaAñoMesVisitas[[#This Row],[Visitas]]","v":775393}]
["2017-07-01",4932,{"$f":"C89+TablaAñoMesVisitas[[#This Row],[Visitas]]","v":780325}]
["2017-08-01",5527,{"$f":"C90+TablaAñoMesVisitas[[#This Row],[Visitas]]","v":785852}]
["2017-09-01",5164,{"$f":"C91+TablaAñoMesVisitas[[#This Row],[Visitas]]","v":791016}]
["2017-10-01",4819,{"$f":"C92+TablaAñoMesVisitas[[#This Row],[Visitas]]","v":795835}]
["2017-11-01",4504,{"$f":"C93+TablaAñoMesVisitas[[#This Row],[Visitas]]","v":800339}]
["2017-12-01",4848,{"$f":"C94+TablaAñoMesVisitas[[#This Row],[Visitas]]","v":805187}]
["2018-01-01",5024,{"$f":"C95+TablaAñoMesVisitas[[#This Row],[Visitas]]","v":810211}]
["2018-02-01",7065,{"$f":"C96+TablaAñoMesVisitas[[#This Row],[Visitas]]","v":817276}]
["2018-03-01",4871,{"$f":"C97+TablaAñoMesVisitas[[#This Row],[Visitas]]","v":822147}]
["2018-04-01",4953,{"$f":"C98+TablaAñoMesVisitas[[#This Row],[Visitas]]","v":827100}]
["2018-05-01",5059,{"$f":"C99+TablaAñoMesVisitas[[#This Row],[Visitas]]","v":832159}]
["2018-06-01",5261,{"$f":"C100+TablaAñoMesVisitas[[#This Row],[Visitas]]","v":837420}]
["2018-07-01",5458,{"$f":"C101+TablaAñoMesVisitas[[#This Row],[Visitas]]","v":842878}]
["2018-08-01",5453,{"$f":"C102+TablaAñoMesVisitas[[#This Row],[Visitas]]","v":848331}]
["2018-09-01",5649,{"$f":"C103+TablaAñoMesVisitas[[#This Row],[Visitas]]","v":853980}]
["2018-10-01",5220,{"$f":"C104+TablaAñoMesVisitas[[#This Row],[Visitas]]","v":859200}]
["2018-11-01",5235,{"$f":"C105+TablaAñoMesVisitas[[#This Row],[Visitas]]","v":864435}]
["2018-12-01",4500,{"$f":"C106+TablaAñoMesVisitas[[#This Row],[Visitas]]","v":868935}]
["2019-01-01",6453,{"$f":"C107+TablaAñoMesVisitas[[#This Row],[Visitas]]","v":875388}]
["2019-02-01",15447,{"$f":"C108+TablaAñoMesVisitas[[#This Row],[Visitas]]","v":890835}]
["2019-03-01",18764,{"$f":"C109+TablaAñoMesVisitas[[#This Row],[Visitas]]","v":909599}]
["2019-04-01",7118,{"$f":"C110+TablaAñoMesVisitas[[#This Row],[Visitas]]","v":916717}]
["2019-05-01",4367,{"$f":"C111+TablaAñoMesVisitas[[#This Row],[Visitas]]","v":921084}]
["2019-06-01",4092,{"$f":"C112+TablaAñoMesVisitas[[#This Row],[Visitas]]","v":925176}]
["2019-07-01",3378,{"$f":"C113+TablaAñoMesVisitas[[#This Row],[Visitas]]","v":928554}]
["2019-08-01",3251,{"$f":"C114+TablaAñoMesVisitas[[#This Row],[Visitas]]","v":931805}]
["2019-09-01",3455,{"$f":"C115+TablaAñoMesVisitas[[#This Row],[Visitas]]","v":935260}]
["2019-10-01",3376,{"$f":"C116+TablaAñoMesVisitas[[#This Row],[Visitas]]","v":938636}]
["2019-11-01",3283,{"$f":"C117+TablaAñoMesVisitas[[#This Row],[Visitas]]","v":941919}]
["2019-12-01",3125,{"$f":"C118+TablaAñoMesVisitas[[#This Row],[Visitas]]","v":945044}]
["2020-01-01",3325,{"$f":"C119+TablaAñoMesVisitas[[#This Row],[Visitas]]","v":948369}]
["2020-02-01",2799,{"$f":"C120+TablaAñoMesVisitas[[#This Row],[Visitas]]","v":951168}]
["2020-03-01",3084,{"$f":"C121+TablaAñoMesVisitas[[#This Row],[Visitas]]","v":954252}]
["2020-04-01",3035,{"$f":"C122+TablaAñoMesVisitas[[#This Row],[Visitas]]","v":957287}]
["2020-05-01",3309,{"$f":"C123+TablaAñoMesVisitas[[#This Row],[Visitas]]","v":960596}]
["2020-06-01",3509,{"$f":"C124+TablaAñoMesVisitas[[#This Row],[Visitas]]","v":964105}]
["2020-07-01",3191,{"$f":"C125+TablaAñoMesVisitas[[#This Row],[Visitas]]","v":967296}]
["2020-08-01",2022,{"$f":"C126+TablaAñoMesVisitas[[#This Row],[Visitas]]","v":969318}]
["2020-09-01",2049,{"$f":"C127+TablaAñoMesVisitas[[#This Row],[Visitas]]","v":971367}]
["2020-10-01",2379,{"$f":"C128+TablaAñoMesVisitas[[#This Row],[Visitas]]","v":973746}]
["2020-11-01",4498,{"$f":"C129+TablaAñoMesVisitas[[#This Row],[Visitas]]","v":978244}]
["2020-12-01",7983,{"$f":"C130+TablaAñoMesVisitas[[#This Row],[Visitas]]","v":986227}]
["2021-01-01",3575,{"$f":"C131+TablaAñoMesVisitas[[#This Row],[Visitas]]","v":989802}]
["2021-02-01",3748,{"$f":"C132+TablaAñoMesVisitas[[#This Row],[Visitas]]","v":993550}]
["2021-03-01",4739,{"$f":"C133+TablaAñoMesVisitas[[#This Row],[Visitas]]","v":998289}]
["2021-04-01",1711,{"$f":"C134+TablaAñoMesVisitas[[#This Row],[Visitas]]","v":1000000}]